[Event "Late-Titled-Tuesday-Blitz-January-30-2024"]
[Site "Chess.com"]
[Date "2024.01.30"]
[Round "4"]
[White "Brahianzevich"]
[Black "mightysmasher"]
[Result "1-0"]
[WhiteElo "2401"]
[BlackElo "2546"]
[TimeControl "180+1"]
[EndTime "14:38:38 PST"]
[Termination "Brahianzevich won by checkmate"]

1. e4 {[%clk 0:02:58.1]} 1... e6 {[%clk 0:02:30.3]} 2. d4 {[%clk 0:02:57.7]}
2... d5 {[%clk 0:02:30.7]} 3. Nc3 {[%clk 0:02:58.6]} 3... dxe4 {[%clk
0:02:30.7]} 4. Nxe4 {[%clk 0:02:59.5]} 4... Nd7 {[%clk 0:02:31.3]} 5. Nf3 {[%clk
0:02:54.7]} 5... Ngf6 {[%clk 0:02:31.3]} 6. Bg5 {[%clk 0:02:47.6]} 6... Be7
{[%clk 0:02:30.2]} 7. Nxf6+ {[%clk 0:02:45.3]} 7... Bxf6 {[%clk 0:02:29.1]} 8.
Bxf6 {[%clk 0:02:38.7]} 8... Nxf6 {[%clk 0:02:30]} 9. Bd3 {[%clk 0:02:38.7]}
9... O-O {[%clk 0:02:29.9]} 10. Qe2 {[%clk 0:02:38.6]} 10... a5 {[%clk
0:02:27.6]} 11. O-O-O {[%clk 0:02:37.2]} 11... a4 {[%clk 0:02:27.7]} 12. Kb1
{[%clk 0:02:34.1]} 12... c6 {[%clk 0:02:25.9]} 13. g4 {[%clk 0:02:16.4]} 13...
Nd5 {[%clk 0:02:21.7]} 14. Qe4 {[%clk 0:02:07.7]} 14... g6 {[%clk 0:02:18.2]}
15. c4 {[%clk 0:01:27.6]} 15... Nb4 {[%clk 0:02:15.1]} 16. h4 {[%clk 0:01:25.4]}
16... Nxd3 {[%clk 0:02:14.3]} 17. Rxd3 {[%clk 0:01:26.2]} 17... f5 {[%clk
0:02:08.4]} 18. gxf5 {[%clk 0:01:22.2]} 18... exf5 {[%clk 0:02:08]} 19. Qf4
{[%clk 0:01:22.4]} 19... Qe7 {[%clk 0:02:05.1]} 20. Re3 {[%clk 0:01:14.8]} 20...
Qf6 {[%clk 0:01:33.2]} 21. h5 {[%clk 0:01:14.9]} 21... Bd7 {[%clk 0:01:04.2]}
22. hxg6 {[%clk 0:01:14.9]} 22... h6 {[%clk 0:01:03.2]} 23. Ne5 {[%clk
0:01:07.2]} 23... Be6 {[%clk 0:00:57.1]} 24. Rxh6 {[%clk 0:01:03.2]} 24... Rfd8
{[%clk 0:00:48.7]} 25. g7 {[%clk 0:00:55.1]} 25... Rxd4 {[%clk 0:00:34.4]} 26.
Qh2 {[%clk 0:00:27]} 26... Rd1+ {[%clk 0:00:14.4]} 27. Kc2 {[%clk 0:00:27.3]}
27... Qxg7 {[%clk 0:00:08.5]} 28. Rg3 {[%clk 0:00:25.9]} 28... Rd2+ {[%clk
0:00:05.4]} 29. Kxd2 {[%clk 0:00:25]} 29... Rd8+ {[%clk 0:00:06.3]} 30. Kc2
{[%clk 0:00:25.1]} 30... f4 {[%clk 0:00:06.1]} 31. Rxg7+ {[%clk 0:00:24.8]}
31... Kxg7 {[%clk 0:00:06.1]} 32. Rg6+ {[%clk 0:00:25.4]} 32... Kf8 {[%clk
0:00:05.9]} 33. Qh8+ {[%clk 0:00:24.2]} 33... Ke7 {[%clk 0:00:05.7]} 34. Qf6+
{[%clk 0:00:24.9]} 34... Kd6 {[%clk 0:00:04.7]} 35. Qxd8+ {[%clk 0:00:24.2]}
35... Kxe5 {[%clk 0:00:02.5]} 36. Qf6+ {[%clk 0:00:23.6]} 36... Ke4 {[%clk
0:00:02.5]} 37. Qxe6+ {[%clk 0:00:23.1]} 37... Kf3 {[%clk 0:00:03.4]} 38. Kd3
{[%clk 0:00:22.8]} 38... Kxf2 {[%clk 0:00:04.3]} 39. Qe2# {[%clk 0:00:22.6]} 1-0

[Event "Late-Titled-Tuesday-Blitz-January-30-2024"]
[Site "Chess.com"]
[Date "2024.01.30"]
[Round "4"]
[White "Russian_berezka"]
[Black "Genghis_K"]
[Result "1-0"]
[WhiteElo "2585"]
[BlackElo "2827"]
[TimeControl "180+1"]
[EndTime "14:38:42 PST"]
[Termination "Russian_berezka won on time"]

1. e4 {[%clk 0:03:00.9]} 1... c5 {[%clk 0:02:56.7]} 2. d4 {[%clk 0:03:00.5]}
2... cxd4 {[%clk 0:02:57]} 3. c3 {[%clk 0:03:01.1]} 3... Nf6 {[%clk 0:02:56.9]}
4. e5 {[%clk 0:02:55.6]} 4... Nd5 {[%clk 0:02:57.4]} 5. cxd4 {[%clk 0:02:56.5]}
5... d6 {[%clk 0:02:57.7]} 6. Nf3 {[%clk 0:02:54.7]} 6... Nc6 {[%clk 0:02:56.7]}
7. Bc4 {[%clk 0:02:49.3]} 7... dxe5 {[%clk 0:02:53.5]} 8. dxe5 {[%clk
0:02:50.2]} 8... Ndb4 {[%clk 0:02:52]} 9. Qxd8+ {[%clk 0:02:45.3]} 9... Nxd8
{[%clk 0:02:51.5]} 10. Na3 {[%clk 0:02:41.1]} 10... a6 {[%clk 0:02:37.6]} 11.
Bd2 {[%clk 0:02:32.2]} 11... Ndc6 {[%clk 0:02:36.5]} 12. Ng5 {[%clk 0:02:19.8]}
12... e6 {[%clk 0:02:27]} 13. f4 {[%clk 0:02:19.6]} 13... b5 {[%clk 0:02:18.5]}
14. Be2 {[%clk 0:02:11.1]} 14... Nd4 {[%clk 0:02:16.9]} 15. Rc1 {[%clk 0:01:48]}
15... Nxa2 {[%clk 0:02:04.4]} 16. Rc7 {[%clk 0:01:46.8]} 16... Be7 {[%clk
0:01:54.6]} 17. Kf2 {[%clk 0:01:38]} 17... h6 {[%clk 0:01:46.3]} 18. Ne4 {[%clk
0:01:34.3]} 18... Nxe2 {[%clk 0:01:13.9]} 19. Kxe2 {[%clk 0:01:31.6]} 19... Bd7
{[%clk 0:01:14.4]} 20. Nd6+ {[%clk 0:01:11.5]} 20... Bxd6 {[%clk 0:01:12.4]} 21.
exd6 {[%clk 0:01:12.4]} 21... b4 {[%clk 0:01:06.6]} 22. Nc4 {[%clk 0:01:07.5]}
22... Bb5 {[%clk 0:01:02.2]} 23. Ra1 {[%clk 0:00:48.5]} 23... b3 {[%clk
0:01:02]} 24. Ke3 {[%clk 0:00:49.1]} 24... O-O {[%clk 0:01:01.1]} 25. Na5 {[%clk
0:00:45.1]} 25... Ba4 {[%clk 0:00:51.8]} 26. Rc4 {[%clk 0:00:43.7]} 26... Bb5
{[%clk 0:00:45.6]} 27. Rd4 {[%clk 0:00:43.9]} 27... Rfb8 {[%clk 0:00:44]} 28.
Nxb3 {[%clk 0:00:43.1]} 28... Be8 {[%clk 0:00:26.4]} 29. Nc5 {[%clk 0:00:40.5]}
29... Rxb2 {[%clk 0:00:23.8]} 30. d7 {[%clk 0:00:39.9]} 30... Bxd7 {[%clk
0:00:24.4]} 31. Nxd7 {[%clk 0:00:40.1]} 31... a5 {[%clk 0:00:22.5]} 32. Nc5
{[%clk 0:00:36.3]} 32... Rc8 {[%clk 0:00:19.3]} 33. Nd3 {[%clk 0:00:31.9]} 33...
Rbc2 {[%clk 0:00:10.8]} 34. Ne1 {[%clk 0:00:29.4]} 34... Rb2 {[%clk 0:00:09]}
35. Nd3 {[%clk 0:00:29.4]} 35... Rbc2 {[%clk 0:00:09.6]} 36. Ra4 {[%clk
0:00:29.4]} 36... Nc3 {[%clk 0:00:06.7]} 37. Bxc3 {[%clk 0:00:29.6]} 37... R8xc3
{[%clk 0:00:06.2]} 38. R1a2 {[%clk 0:00:28.5]} 38... Rc1 {[%clk 0:00:04.3]} 39.
Kd2 {[%clk 0:00:25.7]} 39... Rd1+ {[%clk 0:00:01.3]} 40. Kxc3 {[%clk 0:00:24.7]}
1-0

[Event "Late-Titled-Tuesday-Blitz-January-30-2024"]
[Site "Chess.com"]
[Date "2024.01.30"]
[Round "4"]
[White "GMG"]
[Black "GM4life"]
[Result "1-0"]
[WhiteElo "2812"]
[BlackElo "2560"]
[TimeControl "180+1"]
[EndTime "14:38:42 PST"]
[Termination "GMG won by checkmate"]

1. Nf3 {[%clk 0:03:00.5]} 1... Nf6 {[%clk 0:02:59.9]} 2. c4 {[%clk 0:03:00.4]}
2... e6 {[%clk 0:02:59.7]} 3. g3 {[%clk 0:03:00.5]} 3... d5 {[%clk 0:03:00.1]}
4. Bg2 {[%clk 0:03:01.2]} 4... Be7 {[%clk 0:03:00.6]} 5. d4 {[%clk 0:03:01.4]}
5... O-O {[%clk 0:03:01.5]} 6. O-O {[%clk 0:03:01.8]} 6... dxc4 {[%clk
0:03:01.9]} 7. Ne5 {[%clk 0:03:02.2]} 7... Nc6 {[%clk 0:03:01.1]} 8. Bxc6 {[%clk
0:03:02.7]} 8... bxc6 {[%clk 0:03:01.7]} 9. Nxc6 {[%clk 0:03:03.6]} 9... Qd7
{[%clk 0:03:01.9]} 10. Nxe7+ {[%clk 0:03:04.5]} 10... Qxe7 {[%clk 0:03:02.8]}
11. Nc3 {[%clk 0:03:04.3]} 11... e5 {[%clk 0:02:54.4]} 12. dxe5 {[%clk
0:03:03.9]} 12... Qxe5 {[%clk 0:02:55.3]} 13. Bf4 {[%clk 0:03:04.2]} 13... Qc5
{[%clk 0:02:54.4]} 14. Qc2 {[%clk 0:02:27.9]} 14... Bh3 {[%clk 0:02:44.2]} 15.
Rfc1 {[%clk 0:02:23.1]} 15... Rfe8 {[%clk 0:02:33.9]} 16. Nd1 {[%clk 0:02:14.7]}
16... Qh5 {[%clk 0:01:53.8]} 17. f3 {[%clk 0:01:46.5]} 17... Be6 {[%clk
0:01:53.1]} 18. Nf2 {[%clk 0:01:40.8]} 18... Nd5 {[%clk 0:01:40.7]} 19. Qxc4
{[%clk 0:01:37.5]} 19... Rab8 {[%clk 0:01:39.3]} 20. Nd3 {[%clk 0:01:05.7]}
20... g5 {[%clk 0:01:25]} 21. g4 {[%clk 0:00:54.2]} 21... Qh6 {[%clk 0:01:19.2]}
22. Bg3 {[%clk 0:00:40.5]} 22... Nf4 {[%clk 0:01:13]} 23. Qc2 {[%clk 0:00:40]}
23... Nd5 {[%clk 0:00:52.7]} 24. e4 {[%clk 0:00:31.7]} 24... Ne3 {[%clk
0:00:52.3]} 25. Qf2 {[%clk 0:00:28.8]} 25... Nc4 {[%clk 0:00:51.6]} 26. b3
{[%clk 0:00:28.7]} 26... Nd6 {[%clk 0:00:48.4]} 27. Rxc7 {[%clk 0:00:27]} 27...
Nb5 {[%clk 0:00:48.2]} 28. Rc5 {[%clk 0:00:25.3]} 28... Red8 {[%clk 0:00:42.1]}
29. Qe3 {[%clk 0:00:25.4]} 29... f6 {[%clk 0:00:30.4]} 30. Bxb8 {[%clk
0:00:23.6]} 30... Rxb8 {[%clk 0:00:31.3]} 31. Rac1 {[%clk 0:00:22.5]} 31... Qg7
{[%clk 0:00:28.3]} 32. Nb4 {[%clk 0:00:21.8]} 32... Qd7 {[%clk 0:00:24.4]} 33.
Nd5 {[%clk 0:00:21.1]} 33... Bxd5 {[%clk 0:00:21.6]} 34. Rxd5 {[%clk 0:00:22]}
34... Qe6 {[%clk 0:00:20.5]} 35. Rcd1 {[%clk 0:00:20.1]} 35... Kg7 {[%clk
0:00:18.9]} 36. Rd7+ {[%clk 0:00:18]} 36... Kg6 {[%clk 0:00:18.7]} 37. Qd3
{[%clk 0:00:17.3]} 37... Qb6+ {[%clk 0:00:17.4]} 38. Kg2 {[%clk 0:00:16.5]}
38... Rc8 {[%clk 0:00:14.8]} 39. e5+ {[%clk 0:00:16.6]} 39... f5 {[%clk
0:00:06.4]} 40. Qxf5+ {[%clk 0:00:16.1]} 40... Kh6 {[%clk 0:00:06.7]} 41. Rxh7#
{[%clk 0:00:16.7]} 1-0

[Event "Late-Titled-Tuesday-Blitz-January-30-2024"]
[Site "Chess.com"]
[Date "2024.01.30"]
[Round "4"]
[White "Vasily85"]
[Black "Mikhail_Golubev"]
[Result "0-1"]
[WhiteElo "2475"]
[BlackElo "2657"]
[TimeControl "180+1"]
[EndTime "14:38:43 PST"]
[Termination "Mikhail_Golubev won on time"]

1. Nf3 {[%clk 0:03:00.9]} 1... d6 {[%clk 0:02:59.8]} 2. d4 {[%clk 0:03:00.3]}
2... Nf6 {[%clk 0:02:59.9]} 3. c4 {[%clk 0:03:00]} 3... g6 {[%clk 0:02:59.9]} 4.
g3 {[%clk 0:02:57.7]} 4... Bg7 {[%clk 0:03:00.3]} 5. Bg2 {[%clk 0:02:58.3]} 5...
O-O {[%clk 0:03:00.7]} 6. O-O {[%clk 0:02:59.2]} 6... Nbd7 {[%clk 0:03:01]} 7.
Nc3 {[%clk 0:02:59.8]} 7... e5 {[%clk 0:03:01.4]} 8. e4 {[%clk 0:02:59.9]} 8...
Re8 {[%clk 0:03:01.6]} 9. Re1 {[%clk 0:02:58.5]} 9... exd4 {[%clk 0:02:59.9]}
10. Nxd4 {[%clk 0:02:59.4]} 10... c6 {[%clk 0:02:58.3]} 11. h3 {[%clk
0:02:56.8]} 11... Qb6 {[%clk 0:02:57.3]} 12. Nb3 {[%clk 0:02:39.5]} 12... Ne5
{[%clk 0:02:34.6]} 13. Be3 {[%clk 0:01:37.8]} 13... c5 {[%clk 0:02:34.2]} 14.
Bf1 {[%clk 0:01:16.7]} 14... Be6 {[%clk 0:02:29.2]} 15. Nd5 {[%clk 0:01:01.3]}
15... Bxd5 {[%clk 0:02:17.4]} 16. exd5 {[%clk 0:01:01.7]} 16... a5 {[%clk
0:02:12.9]} 17. Rb1 {[%clk 0:00:58.5]} 17... a4 {[%clk 0:02:01.9]} 18. Nd2
{[%clk 0:00:58.3]} 18... Qa5 {[%clk 0:01:53.1]} 19. f4 {[%clk 0:00:45]} 19...
Ned7 {[%clk 0:01:51.6]} 20. Nf3 {[%clk 0:00:45.4]} 20... Ne4 {[%clk 0:01:45.8]}
21. Kg2 {[%clk 0:00:40.6]} 21... Re7 {[%clk 0:01:40.2]} 22. Bd2 {[%clk
0:00:34.4]} 22... Qa6 {[%clk 0:01:02]} 23. Bd3 {[%clk 0:00:32.2]} 23... Rae8
{[%clk 0:01:01.6]} 24. Qc2 {[%clk 0:00:23.5]} 24... Nxd2 {[%clk 0:00:59.2]} 25.
Qxd2 {[%clk 0:00:24.4]} 25... Qb6 {[%clk 0:00:54.3]} 26. b3 {[%clk 0:00:10.5]}
26... Rxe1 {[%clk 0:00:52.7]} 27. Rxe1 {[%clk 0:00:10.3]} 27... Rxe1 {[%clk
0:00:48]} 28. Qxe1 {[%clk 0:00:11.2]} 28... Qd8 {[%clk 0:00:37.6]} 29. bxa4
{[%clk 0:00:08.2]} 29... b6 {[%clk 0:00:33.4]} 30. Qb1 {[%clk 0:00:05.4]} 30...
Nf6 {[%clk 0:00:31.5]} 31. g4 {[%clk 0:00:02.2]} 31... Nd7 {[%clk 0:00:31.2]}
32. Kg3 {[%clk 0:00:02.3]} 32... h6 {[%clk 0:00:29.9]} 33. f5 {[%clk 0:00:02.1]}
33... Qf6 {[%clk 0:00:26.5]} 34. fxg6 {[%clk 0:00:01.2]} 34... fxg6 {[%clk
0:00:22.5]} 35. Bxg6 {[%clk 0:00:02.1]} 35... Ne5 {[%clk 0:00:22.1]} 36. Qf5
{[%clk 0:00:01.2]} 36... Nxg6 {[%clk 0:00:18]} 0-1

[Event "Late-Titled-Tuesday-Blitz-January-30-2024"]
[Site "Chess.com"]
[Date "2024.01.30"]
[Round "4"]
[White "kaanadayhamle"]
[Black "Practical-Play"]
[Result "0-1"]
[WhiteElo "2401"]
[BlackElo "2612"]
[TimeControl "180+1"]
[EndTime "14:38:46 PST"]
[Termination "Practical-Play won by resignation"]

1. Nf3 {[%clk 0:03:00.9]} 1... d5 {[%clk 0:03:00]} 2. d4 {[%clk 0:03:01.5]} 2...
Nf6 {[%clk 0:02:59.8]} 3. g3 {[%clk 0:03:01.7]} 3... Bf5 {[%clk 0:02:55.1]} 4.
Bg2 {[%clk 0:03:02.1]} 4... e6 {[%clk 0:02:55.6]} 5. Nh4 {[%clk 0:03:02.4]} 5...
Be4 {[%clk 0:02:54.9]} 6. f3 {[%clk 0:03:01.8]} 6... Bg6 {[%clk 0:02:54.9]} 7.
Nxg6 {[%clk 0:03:02.4]} 7... hxg6 {[%clk 0:02:55.8]} 8. O-O {[%clk 0:03:02.8]}
8... c5 {[%clk 0:02:53.6]} 9. c3 {[%clk 0:03:03]} 9... Nc6 {[%clk 0:02:53.4]}
10. Be3 {[%clk 0:03:00.7]} 10... cxd4 {[%clk 0:02:51.1]} 11. cxd4 {[%clk
0:03:01.6]} 11... Bd6 {[%clk 0:02:51]} 12. Nc3 {[%clk 0:03:01.6]} 12... a6
{[%clk 0:02:49.9]} 13. Bf2 {[%clk 0:03:02.1]} 13... Qe7 {[%clk 0:02:42.5]} 14.
e4 {[%clk 0:03:02.4]} 14... dxe4 {[%clk 0:02:40.3]} 15. fxe4 {[%clk 0:03:03.3]}
15... e5 {[%clk 0:02:39.7]} 16. d5 {[%clk 0:03:01.4]} 16... Nd4 {[%clk
0:02:39.8]} 17. Qa4+ {[%clk 0:02:56.5]} 17... b5 {[%clk 0:02:39.2]} 18. Qd1
{[%clk 0:02:55]} 18... Rc8 {[%clk 0:02:34.1]} 19. Rc1 {[%clk 0:02:53.6]} 19...
b4 {[%clk 0:02:32.8]} 20. Ne2 {[%clk 0:02:46.5]} 20... Rxc1 {[%clk 0:02:27.7]}
21. Nxc1 {[%clk 0:02:47.4]} 21... Kf8 {[%clk 0:02:02.3]} 22. Nd3 {[%clk
0:02:45.9]} 22... a5 {[%clk 0:01:58.9]} 23. Nxe5 {[%clk 0:02:21.5]} 23... Bxe5
{[%clk 0:01:37.3]} 24. Bxd4 {[%clk 0:02:21.4]} 24... Kg8 {[%clk 0:01:09.5]} 25.
Qd3 {[%clk 0:01:58.1]} 25... Kh7 {[%clk 0:00:55.5]} 26. Rc1 {[%clk 0:01:55.3]}
26... Re8 {[%clk 0:00:52.2]} 27. Bxe5 {[%clk 0:01:42.1]} 27... Qxe5 {[%clk
0:00:53.1]} 28. b3 {[%clk 0:01:41.2]} 28... Qb2 {[%clk 0:00:40.7]} 29. Qc2
{[%clk 0:01:31.8]} 29... Qd4+ {[%clk 0:00:38.7]} 30. Qf2 {[%clk 0:01:31.8]}
30... Qe5 {[%clk 0:00:26.8]} 31. Rd1 {[%clk 0:00:47]} 31... Ng4 {[%clk
0:00:25.9]} 32. Qd4 {[%clk 0:00:42.2]} 32... Qxd4+ {[%clk 0:00:13.5]} 33. Rxd4
{[%clk 0:00:43.1]} 33... Rc8 {[%clk 0:00:13.6]} 34. Rd1 {[%clk 0:00:18.5]} 34...
Rc2 {[%clk 0:00:12.1]} 35. Bh3 {[%clk 0:00:16.9]} 35... Nf2 {[%clk 0:00:11.2]}
36. d6 {[%clk 0:00:13.5]} 36... Nxd1 {[%clk 0:00:10.9]} 37. d7 {[%clk
0:00:13.2]} 37... Rd2 {[%clk 0:00:11.3]} 38. Kf1 {[%clk 0:00:14.1]} 38... Nc3
{[%clk 0:00:11.1]} 39. Ke1 {[%clk 0:00:15]} 39... Nxe4 {[%clk 0:00:09.5]} 40.
Kf1 {[%clk 0:00:11]} 40... f5 {[%clk 0:00:08.5]} 41. Ke1 {[%clk 0:00:11.9]}
41... Rxd7 {[%clk 0:00:08.1]} 0-1

[Event "Late-Titled-Tuesday-Blitz-January-30-2024"]
[Site "Chess.com"]
[Date "2024.01.30"]
[Round "4"]
[White "rhungaski"]
[Black "RCone"]
[Result "1-0"]
[WhiteElo "2509"]
[BlackElo "2311"]
[TimeControl "180+1"]
[EndTime "14:38:46 PST"]
[Termination "rhungaski won by checkmate"]

1. e4 {[%clk 0:03:00.9]} 1... d6 {[%clk 0:03:00.6]} 2. d4 {[%clk 0:02:59.4]}
2... Nf6 {[%clk 0:02:59.2]} 3. Nc3 {[%clk 0:02:58.2]} 3... g6 {[%clk 0:02:59]}
4. Bg5 {[%clk 0:02:55.6]} 4... Bg7 {[%clk 0:02:58.9]} 5. Qd2 {[%clk 0:02:55.9]}
5... c6 {[%clk 0:02:58.4]} 6. O-O-O {[%clk 0:02:50.7]} 6... b5 {[%clk
0:02:56.8]} 7. Bd3 {[%clk 0:02:25.1]} 7... Nbd7 {[%clk 0:02:45.6]} 8. f4 {[%clk
0:01:58]} 8... b4 {[%clk 0:02:24.6]} 9. Nce2 {[%clk 0:01:53.3]} 9... a5 {[%clk
0:02:18.3]} 10. e5 {[%clk 0:01:39.9]} 10... dxe5 {[%clk 0:02:17.3]} 11. fxe5
{[%clk 0:01:39.4]} 11... Nd5 {[%clk 0:02:16.8]} 12. Bh6 {[%clk 0:00:45.5]} 12...
Bxh6 {[%clk 0:01:46.7]} 13. Qxh6 {[%clk 0:00:46.4]} 13... e6 {[%clk 0:01:22]}
14. Ng3 {[%clk 0:00:31.4]} 14... Ba6 {[%clk 0:01:07.5]} 15. Ne4 {[%clk 0:00:29]}
15... Qe7 {[%clk 0:00:43.8]} 16. Nd6+ {[%clk 0:00:20.2]} 16... Kd8 {[%clk
0:00:43.3]} 17. Nh3 {[%clk 0:00:17.4]} 17... f5 {[%clk 0:00:33.4]} 18. Ng5
{[%clk 0:00:16.4]} 18... Kc7 {[%clk 0:00:32.6]} 19. Rhe1 {[%clk 0:00:15.8]}
19... Bxd3 {[%clk 0:00:29.3]} 20. Rxd3 {[%clk 0:00:16.7]} 20... c5 {[%clk
0:00:24.7]} 21. dxc5 {[%clk 0:00:16.3]} 21... Nxc5 {[%clk 0:00:25.3]} 22. Rd4
{[%clk 0:00:17]} 22... Kb6 {[%clk 0:00:17.4]} 23. Ngf7 {[%clk 0:00:16.6]} 23...
Rhc8 {[%clk 0:00:13.4]} 24. Rxd5 {[%clk 0:00:17.1]} 24... exd5 {[%clk
0:00:13.2]} 25. Qe3 {[%clk 0:00:17.9]} 25... Rc6 {[%clk 0:00:08.3]} 26. Qd4
{[%clk 0:00:17.7]} 26... Kc7 {[%clk 0:00:08]} 27. Qxd5 {[%clk 0:00:16.9]} 27...
a4 {[%clk 0:00:06.3]} 28. Nb5+ {[%clk 0:00:16.1]} 28... Kb6 {[%clk 0:00:06.2]}
29. Nfd6 {[%clk 0:00:16.1]} 29... b3 {[%clk 0:00:05.4]} 30. Kb1 {[%clk
0:00:14.1]} 30... bxc2+ {[%clk 0:00:04.6]} 31. Kc1 {[%clk 0:00:13.8]} 31... a3
{[%clk 0:00:03.8]} 32. b4 {[%clk 0:00:13.6]} 32... Ne4 {[%clk 0:00:03.2]} 33.
Rxe4 {[%clk 0:00:12.7]} 33... fxe4 {[%clk 0:00:04.1]} 34. Qd4+ {[%clk
0:00:12.8]} 34... Ka6 {[%clk 0:00:03]} 35. Qe3 {[%clk 0:00:11]} 35... Rb8 {[%clk
0:00:02.6]} 36. Qxa3+ {[%clk 0:00:11.1]} 36... Kb6 {[%clk 0:00:02.4]} 37. Qa5#
{[%clk 0:00:10.1]} 1-0

[Event "Late-Titled-Tuesday-Blitz-January-30-2024"]
[Site "Chess.com"]
[Date "2024.01.30"]
[Round "4"]
[White "LastHeroJr"]
[Black "Walter_White_Poland"]
[Result "0-1"]
[WhiteElo "2485"]
[BlackElo "2321"]
[TimeControl "180+1"]
[EndTime "14:38:48 PST"]
[Termination "Walter_White_Poland won by checkmate"]

1. e4 {[%clk 0:02:52.8]} 1... e5 {[%clk 0:02:59.4]} 2. Nf3 {[%clk 0:02:45.9]}
2... Nc6 {[%clk 0:02:59.2]} 3. Bc4 {[%clk 0:02:45.4]} 3... Nf6 {[%clk
0:02:58.3]} 4. d3 {[%clk 0:02:45.4]} 4... d5 {[%clk 0:02:58.1]} 5. exd5 {[%clk
0:02:45.5]} 5... Nxd5 {[%clk 0:02:58.3]} 6. O-O {[%clk 0:02:45.7]} 6... Nb6
{[%clk 0:02:58.5]} 7. Bb5 {[%clk 0:02:43.9]} 7... Bd6 {[%clk 0:02:57.7]} 8. d4
{[%clk 0:02:38.4]} 8... e4 {[%clk 0:02:56.3]} 9. Ng5 {[%clk 0:02:18.6]} 9... f5
{[%clk 0:02:47.6]} 10. d5 {[%clk 0:02:12.9]} 10... Nxd5 {[%clk 0:02:43.8]} 11.
c4 {[%clk 0:01:55.8]} 11... Nf6 {[%clk 0:02:22.3]} 12. c5 {[%clk 0:01:38.9]}
12... Be7 {[%clk 0:02:21.4]} 13. Qb3 {[%clk 0:01:38]} 13... Qd5 {[%clk
0:00:55.7]} 14. Bc4 {[%clk 0:01:24]} 14... Qe5 {[%clk 0:00:48.2]} 15. Nf7 {[%clk
0:01:11.3]} 15... Qxc5 {[%clk 0:00:44.8]} 16. Nxh8 {[%clk 0:01:10.2]} 16... Na5
{[%clk 0:00:42.5]} 17. Bf7+ {[%clk 0:01:08.9]} 17... Kf8 {[%clk 0:00:42.2]} 18.
Qc3 {[%clk 0:00:27.8]} 18... Bd7 {[%clk 0:00:41.4]} 19. Be3 {[%clk 0:00:19.8]}
19... Qd6 {[%clk 0:00:26.1]} 20. Bb3 {[%clk 0:00:15.3]} 20... Nxb3 {[%clk
0:00:24.2]} 21. Qxb3 {[%clk 0:00:16.2]} 21... Be6 {[%clk 0:00:23.9]} 22. Qxb7
{[%clk 0:00:15.1]} 22... Bd5 {[%clk 0:00:22.4]} 23. Qb5 {[%clk 0:00:12.8]} 23...
f4 {[%clk 0:00:20.5]} 24. Bd4 {[%clk 0:00:11.9]} 24... f3 {[%clk 0:00:15.4]} 25.
Nc3 {[%clk 0:00:08.1]} 25... Ng4 {[%clk 0:00:13]} 26. g3 {[%clk 0:00:07.7]}
26... Qh6 {[%clk 0:00:10.5]} 27. h4 {[%clk 0:00:07.7]} 27... Bxh4 {[%clk
0:00:08.9]} 28. Bxg7+ {[%clk 0:00:07]} 28... Kxg7 {[%clk 0:00:08]} 29. Qxd5
{[%clk 0:00:07.1]} 29... Bf6 {[%clk 0:00:07.2]} 30. Qd7+ {[%clk 0:00:05.1]}
30... Kxh8 {[%clk 0:00:07.2]} 31. Qxg4 {[%clk 0:00:05.5]} 31... Rg8 {[%clk
0:00:05.7]} 32. Qd7 {[%clk 0:00:05.7]} 32... e3 {[%clk 0:00:04.5]} 33. fxe3
{[%clk 0:00:05.3]} 33... Rxg3+ {[%clk 0:00:03.5]} 34. Kf2 {[%clk 0:00:05.6]}
34... Qh2+ {[%clk 0:00:03.9]} 35. Ke1 {[%clk 0:00:06.1]} 35... Bxc3+ {[%clk
0:00:03.9]} 36. bxc3 {[%clk 0:00:05.9]} 36... Qe2# {[%clk 0:00:04]} 0-1

[Event "Late-Titled-Tuesday-Blitz-January-30-2024"]
[Site "Chess.com"]
[Date "2024.01.30"]
[Round "4"]
[White "JonasGallasch"]
[Black "Noki102"]
[Result "0-1"]
[WhiteElo "2325"]
[BlackElo "2523"]
[TimeControl "180+1"]
[EndTime "14:38:49 PST"]
[Termination "Noki102 won by resignation"]

1. d4 {[%clk 0:03:00]} 1... d5 {[%clk 0:02:59.9]} 2. c4 {[%clk 0:03:00.3]} 2...
e6 {[%clk 0:02:59.6]} 3. Nc3 {[%clk 0:02:59.8]} 3... Nf6 {[%clk 0:03:00.2]} 4.
cxd5 {[%clk 0:03:00]} 4... exd5 {[%clk 0:02:59.9]} 5. Bg5 {[%clk 0:03:00.5]}
5... Be7 {[%clk 0:02:59.5]} 6. e3 {[%clk 0:03:00.6]} 6... O-O {[%clk 0:02:58.9]}
7. Bd3 {[%clk 0:03:00]} 7... c6 {[%clk 0:02:50.8]} 8. Qc2 {[%clk 0:02:59.4]}
8... h6 {[%clk 0:02:48.6]} 9. Bh4 {[%clk 0:02:55.7]} 9... Nh5 {[%clk 0:02:48.3]}
10. Bxe7 {[%clk 0:02:54.3]} 10... Qxe7 {[%clk 0:02:49.2]} 11. O-O-O {[%clk
0:02:54.2]} 11... Nd7 {[%clk 0:02:37.7]} 12. Nf3 {[%clk 0:02:49]} 12... b5
{[%clk 0:02:35.3]} 13. g4 {[%clk 0:02:46.4]} 13... Nhf6 {[%clk 0:02:33.3]} 14.
g5 {[%clk 0:02:45.2]} 14... hxg5 {[%clk 0:02:31.2]} 15. Nxg5 {[%clk 0:02:46.1]}
15... Nb6 {[%clk 0:02:28]} 16. h4 {[%clk 0:02:41.4]} 16... Bg4 {[%clk
0:02:07.8]} 17. Rdg1 {[%clk 0:02:39.5]} 17... Bh5 {[%clk 0:02:07.3]} 18. Nh3
{[%clk 0:02:34]} 18... Rac8 {[%clk 0:01:58.5]} 19. Nf4 {[%clk 0:02:31.7]} 19...
b4 {[%clk 0:01:57]} 20. Na4 {[%clk 0:02:10.6]} 20... Nxa4 {[%clk 0:01:54.8]} 21.
Qxa4 {[%clk 0:02:11.5]} 21... c5 {[%clk 0:01:54.6]} 22. Kb1 {[%clk 0:02:11.4]}
22... Bf3 {[%clk 0:01:18.4]} 23. Rh3 {[%clk 0:02:10.1]} 23... Be4 {[%clk
0:01:17.8]} 24. Qd1 {[%clk 0:02:07]} 24... cxd4 {[%clk 0:01:08.2]} 25. exd4
{[%clk 0:02:05.4]} 25... Qc7 {[%clk 0:01:07.6]} 26. Bxe4 {[%clk 0:01:56.8]}
26... Nxe4 {[%clk 0:00:49.4]} 27. Nxd5 {[%clk 0:01:44.6]} 27... Qd7 {[%clk
0:00:49]} 28. Nf4 {[%clk 0:01:27.6]} 28... Qf5 {[%clk 0:00:48.1]} 29. Qh5 {[%clk
0:00:16.7]} 29... Qxf4 {[%clk 0:00:22.6]} 30. a4 {[%clk 0:00:11.1]} 30... b3
{[%clk 0:00:18.1]} 31. Rxb3 {[%clk 0:00:10.2]} 31... Nd2+ {[%clk 0:00:17.4]} 32.
Ka2 {[%clk 0:00:10.1]} 32... Nxb3 {[%clk 0:00:17.7]} 33. Kxb3 {[%clk 0:00:09.2]}
33... Rb8+ {[%clk 0:00:12.1]} 34. Ka2 {[%clk 0:00:08.4]} 34... Rb6 {[%clk
0:00:12.3]} 35. Rg4 {[%clk 0:00:07.2]} 35... Qxf2 {[%clk 0:00:07.7]} 36. Rxg7+
{[%clk 0:00:07.3]} 36... Kxg7 {[%clk 0:00:07.6]} 37. Qg5+ {[%clk 0:00:08.2]}
37... Rg6 {[%clk 0:00:07.8]} 38. Qe5+ {[%clk 0:00:08.7]} 38... Qf6 {[%clk
0:00:07.7]} 39. Qh5 {[%clk 0:00:08.8]} 39... Qe6+ {[%clk 0:00:07.8]} 40. d5
{[%clk 0:00:07.9]} 40... Qf6 {[%clk 0:00:07.2]} 0-1